bitfinex/quotes_BTCUSD_20241020
["timestamp","ask_amount","ask_price","bid_price","bid_amount"]
[1729462610946,0.21786809,68869.0,68857.0,0.0796]
[1729462611183,0.116164,68868.0,68861.0,0.43566]
[1729462611387,0.21786809,68883.0,68861.0,0.43566]
[1729462611388,0.232319,68871.0,68862.0,0.00115343]
[1729462611608,0.21869409,68876.0,68863.0,0.43565]
[1729462611869,0.21869409,68876.0,68864.0,0.116169]
[1729462611870,0.116159,68871.0,68864.0,0.116169]
[1729462612056,0.116159,68871.0,68859.0,0.21786809]
[1729462612057,0.116159,68871.0,68865.0,0.551798]
[1729462612268,0.1,68874.0,68866.0,0.1951]
[1729462612480,0.1,68874.0,68867.0,0.319455]
[1729462612481,0.232328,68869.0,68867.0,0.319455]
[1729462612699,0.116164,68868.0,68867.0,0.319455]
[1729462613578,0.116164,68868.0,68867.0,0.3353377]
[1729462614030,0.26512315,68868.0,68867.0,0.319455]
[1729462614275,0.26512315,68868.0,68867.0,0.323455]
[1729462614276,0.36512315,68868.0,68867.0,0.323455]
[1729462614781,0.216164,68868.0,68867.0,0.319455]
[1729462615015,0.216164,68868.0,68867.0,0.323455]
[1729462615736,0.000826,68876.0,68867.0,0.588055]
[1729462615737,0.1,68874.0,68867.0,0.588055]
[1729462615965,0.116164,68868.0,68867.0,0.323455]
[1729462616202,0.116164,68868.0,68867.0,0.319455]
[1729462616459,0.116164,68868.0,68867.0,0.34251567]
[1729462616679,0.36512315,68868.0,68867.0,0.34251567]
[1729462616905,0.36512315,68868.0,68867.0,0.33851567]
[1729462617348,0.216164,68868.0,68867.0,0.35776599]
[1729462617771,0.216164,68868.0,68867.0,0.36964869]
[1729462617988,0.216164,68868.0,68867.0,0.35576599]
[1729462618428,0.36512315,68868.0,68867.0,0.35576599]
[1729462619263,0.36512315,68868.0,68867.0,0.37408928]
[1729462619480,0.36512315,68868.0,68867.0,0.37478928]
[1729462619908,0.36512315,68868.0,68867.0,0.37078928]
[1729462620540,0.36512315,68868.0,68867.0,0.37378928]
[1729462621004,0.36512315,68868.0,68867.0,0.37387599]
[1729462621216,0.36512315,68868.0,68867.0,0.36677599]
[1729462621890,0.216164,68868.0,68867.0,0.36677599]
[1729462622771,0.216164,68868.0,68867.0,0.37077599]
[1729462623205,0.216164,68868.0,68867.0,0.36677599]
[1729462623636,0.216164,68868.0,68867.0,0.32684595]
[1729462623861,0.216164,68868.0,68867.0,0.37079426]
[1729462624072,0.216164,68868.0,68867.0,0.38406633]
[1729462624499,0.216164,68868.0,68867.0,0.38806633]
[1729462625809,0.216164,68868.0,68867.0,0.38406633]
[1729462626015,0.216164,68868.0,68867.0,0.38706633]
[1729462626458,0.116164,68868.0,68867.0,0.38406633]
[1729462626675,0.000826,68876.0,68870.0,0.11616]
[1729462626894,0.116155,68874.0,68871.0,0.63117133]
[1729462627180,0.116154,68874.0,68871.0,0.58722729]
[1729462627394,0.000826,68876.0,68874.0,0.116153]
[1729462627628,0.000826,68876.0,68875.0,0.79077676]
[1729462627855,0.21869109,68892.0,68885.0,0.1877]
[1729462627856,0.000823,68892.0,68885.0,0.1877]
[1729462628073,0.000823,68892.0,68888.0,0.11613]
[1729462628074,0.21786809,68889.0,68888.0,0.11613]
[1729462628320,0.000823,68892.0,68888.0,0.63104926]
[1729462628555,0.000823,68892.0,68889.0,0.07698926]
[1729462628787,0.000823,68892.0,68890.0,0.55904]
[1729462629017,0.116125,68891.0,68890.0,0.55904]
[1729462629277,0.116125,68891.0,68890.0,0.64683742]
[1729462629511,0.116125,68891.0,68890.0,0.64530688]
[1729462629760,0.116125,68891.0,68890.0,0.63094273]
[1729462629979,0.116125,68891.0,68890.0,0.63494273]
[1729462630464,0.116125,68891.0,68890.0,0.61186464]
[1729462630937,0.116125,68891.0,68890.0,0.61586464]
[1729462632484,0.116125,68891.0,68890.0,0.61186464]
[1729462632714,0.26508415,68891.0,68890.0,0.61186464]
[1729462632938,0.38808415,68891.0,68890.0,0.60060264]
[1729462633395,0.38808415,68891.0,68890.0,0.56981853]
[1729462633396,0.40508415,68891.0,68890.0,0.56981853]
[1729462633639,0.40508415,68891.0,68890.0,0.55904]
[1729462633859,0.40308415,68891.0,68890.0,0.56074]
[1729462634323,0.40308415,68891.0,68890.0,0.55674]
[1729462634807,0.39808415,68891.0,68890.0,0.55674]
[1729462635001,0.39391015,68891.0,68890.0,0.55674]
[1729462638290,0.216951,68891.0,68890.0,0.55674]
[1729462638505,0.116951,68891.0,68890.0,0.57716053]
[1729462638721,0.116951,68891.0,68890.0,0.59439837]
[1729462639160,0.116951,68891.0,68890.0,0.60965305]
[1729462639599,0.116951,68891.0,68890.0,0.61365305]
[1729462639835,0.000823,68892.0,68890.0,0.81225305]
[1729462640099,0.000823,68892.0,68891.0,0.24874097]
[1729462640308,0.000823,68892.0,68891.0,0.8381007]
[1729462640537,0.0190583,68907.0,68900.0,0.2036]
[1729462640762,0.0190583,68907.0,68900.0,0.92495227]
[1729462640763,0.21786809,68903.0,68900.0,0.92495227]
[1729462640974,0.116104,68904.0,68900.0,0.8318611]
[1729462641728,0.116931,68901.0,68900.0,0.81279215]
[1729462642862,0.116931,68901.0,68900.0,0.81679215]
[1729462643312,0.116931,68901.0,68900.0,0.81279215]
[1729462643779,0.116931,68901.0,68900.0,0.79189883]
[1729462644062,0.116931,68901.0,68900.0,0.81693271]
[1729462644508,0.139931,68901.0,68900.0,0.61833271]
[1729462644731,0.28889015,68901.0,68900.0,0.61833271]
[1729462644987,0.28889015,68901.0,68900.0,0.61433271]
[1729462645212,0.28889015,68901.0,68900.0,0.61833271]
[1729462645454,0.28889015,68901.0,68900.0,0.58568471]
[1729462645455,0.38889015,68901.0,68900.0,0.58568471]
[1729462645686,0.38889015,68901.0,68900.0,0.58168471]
[1729462646181,0.38889015,68901.0,68900.0,0.58568471]
[1729462646415,0.39389015,68901.0,68900.0,0.58168471]
[1729462646649,0.39389015,68901.0,68900.0,0.56128]
[1729462646650,0.40589015,68901.0,68900.0,0.56128]
[1729462646878,0.26595915,68901.0,68900.0,0.56128]
[1729462647353,0.38006715,68901.0,68900.0,0.56128]
[1729462647561,0.37589315,68901.0,68900.0,0.56128]
[1729462647812,0.37589315,68901.0,68900.0,0.57091382]
[1729462648046,0.37589315,68901.0,68900.0,0.57091351]
[1729462648047,0.36589315,68901.0,68900.0,0.57091351]
[1729462648286,0.37089315,68901.0,68900.0,0.57091351]
[1729462649012,0.40389315,68901.0,68900.0,0.56128]
[1729462649243,0.40589315,68901.0,68900.0,0.56128]
[1729462649696,0.40389315,68901.0,68900.0,0.56128]
[1729462650416,0.39889315,68901.0,68900.0,0.57195443]
[1729462650659,0.38870764,68901.0,68900.0,0.57195499]
[1729462651122,0.38870764,68901.0,68900.0,0.58743283]
[1729462651595,0.116934,68901.0,68900.0,0.58643283]
[1729462652077,0.116934,68901.0,68900.0,0.58743283]
[1729462652541,0.116934,68901.0,68900.0,0.58643283]
[1729462652774,0.139934,68901.0,68900.0,0.60578396]
[1729462653024,0.139934,68901.0,68900.0,0.60978396]
[1729462653229,0.116934,68901.0,68900.0,0.60978396]
[1729462653424,0.28889315,68901.0,68900.0,0.60978396]
[1729462653630,0.28889315,68901.0,68900.0,0.59043283]
[1729462653840,0.38889315,68901.0,68900.0,0.59043283]
[1729462654045,0.39589315,68901.0,68900.0,0.57496094]
[1729462654254,0.40589315,68901.0,68900.0,0.57496094]
[1729462654876,0.40589315,68901.0,68900.0,0.56528]
[1729462655078,0.40389315,68901.0,68900.0,0.56128]
[1729462655287,0.40389315,68901.0,68900.0,0.57096845]
[1729462655564,0.40389315,68901.0,68900.0,0.57496845]
[1729462655978,0.38889315,68901.0,68900.0,0.57096845]
[1729462656200,0.39389315,68901.0,68900.0,0.57196845]
[1729462656407,0.39389315,68901.0,68900.0,0.58748141]
[1729462656863,0.39389315,68901.0,68900.0,0.58648141]
[1729462657288,0.39389315,68901.0,68900.0,0.58648747]
[1729462657711,0.39389315,68901.0,68900.0,0.42848747]
[1729462658472,0.39389315,68901.0,68900.0,0.413975]
[1729462658677,0.40389315,68901.0,68900.0,0.413975]
[1729462658878,0.40389315,68901.0,68900.0,0.414627]
[1729462660144,0.40389315,68901.0,68900.0,0.415627]
[1729462660568,0.40389315,68901.0,68900.0,0.41562951]
[1729462660981,0.39389315,68901.0,68900.0,0.43114486]
[1729462661191,0.38889315,68901.0,68900.0,0.43114486]
[1729462661404,0.116934,68901.0,68900.0,0.45053484]
[1729462661827,0.116934,68901.0,68900.0,0.44953484]
[1729462662531,0.000826,68901.0,68900.0,0.44953484]
[1729462662736,0.0190583,68907.0,68906.0,0.1211]
[1729462662950,0.21786809,68919.0,68918.0,0.116079]
[1729462663222,0.21786809,68919.0,68918.0,0.87984184]
[1729462663436,0.232129,68927.0,68919.0,0.1802]
[1729462663647,0.116074,68921.0,68920.0,0.76376284]
[1729462663867,0.116074,68921.0,68920.0,0.76367552]
[1729462665378,0.116074,68921.0,68920.0,0.7481871]
[1729462665583,0.116074,68921.0,68920.0,0.76366807]
[1729462665996,0.116074,68921.0,68920.0,0.76566807]
[1729462666422,0.116074,68921.0,68920.0,0.76366807]
[1729462666907,0.116074,68921.0,68920.0,0.76466807]
[1729462667303,0.38803315,68921.0,68920.0,0.76466807]
[1729462667515,0.38803315,68921.0,68920.0,0.74531629]
[1729462668181,0.38803315,68921.0,68920.0,0.74431629]
[1729462668410,0.38803315,68921.0,68920.0,0.74531629]
[1729462668925,0.38803315,68921.0,68920.0,0.74431629]
[1729462670056,0.116074,68921.0,68920.0,0.74431629]
[1729462670309,0.116074,68921.0,68920.0,0.76366191]
[1729462670572,0.116074,68921.0,68920.0,0.71916]
[1729462670960,0.116074,68921.0,68920.0,0.76364052]
[1729462671962,0.1169,68921.0,68920.0,0.76364052]
[1729462673445,0.1169,68921.0,68920.0,0.7656263]
[1729462673690,0.28885915,68921.0,68920.0,0.7656263]
[1729462674686,0.38885915,68921.0,68920.0,0.74429268]
[1729462675189,0.38885915,68921.0,68920.0,0.74629268]
[1729462675423,0.38885915,68921.0,68920.0,0.76560628]
[1729462675667,0.38885915,68921.0,68920.0,0.76360628]
[1729462675903,0.38885915,68921.0,68920.0,0.76460628]
[1729462676359,0.38885915,68921.0,68920.0,0.76360628]
[1729462676606,0.38885915,68921.0,68920.0,0.74429268]
[1729462677112,0.40585915,68921.0,68920.0,0.72882624]
[1729462677828,0.40585915,68921.0,68920.0,0.71916]
[1729462678062,0.40385915,68921.0,68920.0,0.72882029]
[1729462678651,0.40385915,68921.0,68920.0,0.72982029]
[1729462678745,0.40385915,68921.0,68920.0,0.74527675]
[1729462678984,0.40385915,68921.0,68920.0,0.74427675]
[1729462680140,0.38885915,68921.0,68920.0,0.74427675]
[1729462680817,0.2169,68921.0,68920.0,0.8447007]
[1729462681039,0.000826,68921.0,68920.0,1.0427007]
[1729462681261,0.2169,68921.0,68920.0,1.0427007]
[1729462682150,0.2169,68921.0,68920.0,1.0437007]
[1729462682467,0.38885915,68921.0,68920.0,0.7646007]
[1729462682638,0.39385915,68921.0,68920.0,0.72882029]
[1729462682904,0.38885915,68921.0,68920.0,0.72882029]
[1729462683142,0.2169,68921.0,68920.0,0.74429633]
[1729462683635,0.38885915,68921.0,68920.0,0.74429633]
[1729462683857,0.38885915,68921.0,68920.0,0.72882029]
[1729462684108,0.38885915,68921.0,68920.0,0.72982029]
[1729462684109,0.39385915,68921.0,68920.0,0.72982029]
[1729462684545,0.39385915,68921.0,68920.0,0.72882029]
[1729462685034,0.39385915,68921.0,68920.0,0.74429913]
[1729462685248,0.38885915,68921.0,68920.0,0.74429913]
[1729462685455,0.39378159,68921.0,68920.0,0.74429913]
[1729462685710,0.11682244,68921.0,68920.0,0.74529913]
[1729462685923,0.11682244,68921.0,68920.0,0.76465259]
[1729462686637,0.00074844,68921.0,68920.0,0.76465259]
[1729462686857,0.11682244,68921.0,68920.0,1.03205259]
[1729462687950,0.11682244,68921.0,68920.0,0.95145259]
[1729462688203,0.40982407,68921.0,68920.0,0.95145259]
[1729462688433,0.43282407,68921.0,68920.0,0.74429913]
[1729462688719,0.44782407,68921.0,68920.0,0.72882029]
[1729462688936,0.43282407,68921.0,68920.0,0.72882029]
[1729462689147,0.43282407,68921.0,68920.0,0.74431392]
[1729462689640,0.57896186,68921.0,68920.0,0.7636905]
[1729462689873,0.40700271,68921.0,68920.0,0.9514905]
[1729462690126,0.16086492,68921.0,68920.0,1.0320905]
[1729462690374,0.16286492,68921.0,68920.0,1.0330905]
[1729462690601,0.16286492,68921.0,68920.0,1.04919266]
[1729462690812,0.16086492,68921.0,68920.0,1.0320905]
[1729462691236,0.16286492,68921.0,68920.0,1.0320905]
[1729462692599,0.29258061,68921.0,68920.0,1.0320905]
[1729462692806,0.29258061,68921.0,68920.0,1.03219509]
[1729462693020,0.44153976,68921.0,68920.0,0.76379509]
[1729462693287,0.33482407,68921.0,68920.0,0.7638005]
[1729462694028,0.33482407,68921.0,68920.0,0.49123295]
[1729462694245,0.31182407,68921.0,68920.0,0.49125726]
[1729462694478,0.26778159,68921.0,68920.0,0.49125726]
[1729462695639,0.26778159,68921.0,68920.0,0.49291326]
[1729462696560,0.35415667,68921.0,68920.0,0.49291326]
[1729462696808,0.35415667,68921.0,68920.0,0.49287156]
[1729462697527,0.11882244,68921.0,68920.0,0.49287156]
[1729462698004,0.118074,68921.0,68920.0,0.49287156]
[1729462698443,0.18284717,68921.0,68920.0,0.49287156]
[1729462698895,0.116074,68921.0,68920.0,0.67987156]
[1729462699123,0.18084717,68921.0,68920.0,0.67987156]
[1729462699352,0.18184717,68921.0,68920.0,0.67987156]
[1729462699586,0.117074,68921.0,68920.0,0.67987156]
[1729462699871,0.116074,68921.0,68920.0,0.67987156]
[1729462700340,0.32979279,68921.0,68920.0,0.49487156]
[1729462700560,0.26503315,68921.0,68920.0,0.49487156]
[1729462700779,0.32979279,68921.0,68920.0,0.49487156]
[1729462701006,0.39459652,68921.0,68920.0,0.47546976]
[1729462701221,0.32980634,68921.0,68920.0,0.47546976]
[1729462701440,0.26503315,68921.0,68920.0,0.47546976]
[1729462702186,0.38803315,68921.0,68920.0,0.47546976]
[1729462702429,0.39303315,68921.0,68920.0,0.45994878]
[1729462702639,0.36503315,68921.0,68920.0,0.45794878]
[1729462702885,0.36603315,68921.0,68920.0,0.47346993]
[1729462703135,0.36603315,68921.0,68920.0,0.55626993]
[1729462703136,0.117074,68921.0,68920.0,0.55626993]
[1729462703386,0.116074,68921.0,68920.0,0.55626993]
[1729462703651,0.116074,68921.0,68920.0,0.76366081]
[1729462703864,0.16122094,68921.0,68920.0,0.76366081]
[1729462704089,0.118074,68921.0,68920.0,0.76366081]
[1729462704321,0.116074,68921.0,68920.0,0.76266081]
[1729462704563,0.15922076,68921.0,68920.0,0.76266081]
[1729462704773,0.116074,68921.0,68920.0,0.76266081]
[1729462705015,0.116074,68921.0,68920.0,0.76466081]
[1729462705523,0.24549774,68921.0,68920.0,0.76466081]
[1729462705967,0.116074,68921.0,68920.0,0.76466081]
[1729462706925,0.116074,68921.0,68920.0,0.72004845]
[1729462707142,0.116074,68921.0,68920.0,0.76470631]
[1729462707365,0.116902,68921.0,68920.0,0.76470698]
[1729462708779,0.116902,68921.0,68920.0,0.78199087]
[1729462709706,0.116902,68921.0,68920.0,0.79817258]
[1729462709923,0.116902,68921.0,68920.0,0.78199087]
[1729462710605,0.116902,68921.0,68920.0,0.78199171]
[1729462710830,0.116902,68921.0,68920.0,0.79817342]
[1729462711084,0.24621016,68921.0,68920.0,0.78199171]
[1729462711536,0.24620566,68921.0,68920.0,0.78199171]
[1729462711964,0.24620566,68921.0,68920.0,0.79817342]
[1729462712402,0.24620566,68921.0,68920.0,0.78199171]
[1729462712620,0.24621338,68921.0,68920.0,0.78199171]
[1729462713538,0.116902,68921.0,68920.0,0.78199171]
[1729462714003,0.116902,68921.0,68920.0,0.78202634]
[1729462714657,0.24622334,68921.0,68920.0,0.79822047]
[1729462714875,0.116902,68921.0,68920.0,0.79822047]
[1729462715089,0.116902,68921.0,68920.0,0.78202634]
[1729462715305,0.116902,68921.0,68920.0,0.79822047]
[1729462715988,0.116902,68921.0,68920.0,0.78202634]
[1729462716208,0.000828,68921.0,68920.0,0.78202634]
[1729462716443,0.000828,68921.0,68920.0,0.90310234]
[1729462716678,0.0430926,68925.0,68924.0,0.385269]
[1729462716900,0.0430926,68925.0,68924.0,1.43893689]
[1729462717420,0.06463891,68927.0,68926.0,0.005]
[1729462717649,0.06463891,68927.0,68926.0,1.59783618]
[1729462717864,0.03198512,68927.0,68926.0,1.59783618]
[1729462718088,0.000822,68928.0,68927.0,0.131064]
[1729462718315,0.232042,68953.0,68942.0,0.121039]
[1729462718534,0.116025,68951.0,68942.0,1.43875003]
[1729462718764,0.21786809,68950.0,68942.0,1.60386595]
[1729462718982,0.21786809,68950.0,68942.0,1.58770918]
[1729462719450,0.116029,68948.0,68942.0,1.58770918]
[1729462719673,0.232061,68948.0,68942.0,1.32171103]
[1729462719892,0.116859,68943.0,68942.0,1.32171103]
[1729462720110,0.116859,68943.0,68942.0,1.30229931]
[1729462720562,0.116859,68943.0,68942.0,1.29829931]
[1729462721272,0.000822,68943.0,68942.0,1.56829746]
[1729462721514,0.000822,68943.0,68942.0,1.58029746]
[1729462721721,0.33388009,68958.0,68944.0,0.397236]
[1729462721955,0.116015,68957.0,68944.0,1.61381441]
[1729462722215,0.33388109,68958.0,68944.0,1.61381441]
[1729462722426,0.21786809,68958.0,68944.0,1.61579953]
[1729462722644,0.21786809,68958.0,68944.0,1.59969618]
[1729462722858,0.21786809,68958.0,68955.0,0.116017]
[1729462723100,0.21786809,68958.0,68956.0,1.03400931]
[1729462723336,0.116829,68961.0,68957.0,0.04251931]
[1729462723596,0.116829,68961.0,68958.0,1.01847038]
[1729462723841,0.116009,68960.0,68959.0,0.04251931]
[1729462724045,0.116009,68960.0,68959.0,0.99147]
[1729462724267,0.116009,68960.0,68959.0,1.01824597]
[1729462724498,0.000822,68961.0,68960.0,0.121009]
[1729462724743,0.000822,68961.0,68960.0,1.38377233]
[1729462725635,0.000822,68961.0,68960.0,1.36657705]
[1729462725900,0.000822,68961.0,68960.0,1.38372886]
[1729462726567,0.000822,68961.0,68960.0,1.38772886]
[1729462727459,0.000822,68961.0,68960.0,1.57682886]
[1729462727678,0.000822,68961.0,68960.0,1.56723331]
[1729462727896,0.000822,68961.0,68960.0,1.57677681]
[1729462730136,0.116089,68967.0,68966.0,0.005]
[1729462730351,0.116089,68967.0,68966.0,1.03847866]
[1729462730568,0.116089,68967.0,68966.0,1.03347866]
[1729462731045,0.000822,68970.0,68969.0,0.005]
[1729462731285,0.000822,68988.0,68987.0,0.120963]
[1729462731533,0.000822,68988.0,68987.0,1.56562775]
[1729462731744,0.000822,68988.0,68987.0,1.43582077]
[1729462731978,0.000822,68988.0,68987.0,1.4166686]
[1729462732204,0.000822,68988.0,68987.0,1.56562775]
[1729462732433,0.000822,68988.0,68987.0,1.3007056]
[1729462732713,0.116784,68988.0,68987.0,1.2997056]
[1729462732930,0.000822,68988.0,68987.0,1.2997056]
[1729462733152,0.000822,68988.0,68987.0,1.3007056]
[1729462733375,0.000822,68988.0,68987.0,1.3047056]
[1729462734272,0.000822,68988.0,68987.0,1.26269]
[1729462734489,0.000822,68988.0,68987.0,1.30460325]
[1729462734707,0.000822,68988.0,68987.0,1.30060325]
[1729462734955,0.000822,68988.0,68987.0,1.41656625]
[1729462735161,0.000822,68988.0,68987.0,1.42056625]
[1729462735602,0.000822,68988.0,68987.0,1.30460325]
[1729462736267,0.116784,68988.0,68987.0,1.03720325]
[1729462736766,0.116784,68988.0,68987.0,1.02191895]
[1729462737207,0.116784,68988.0,68987.0,1.01236655]
[1729462737433,0.116784,68988.0,68987.0,1.02191599]
[1729462737648,0.116784,68988.0,68987.0,1.01791599]
[1729462738084,0.116784,68988.0,68987.0,1.02191599]
[1729462738305,0.26574315,68988.0,68987.0,1.02191599]
[1729462738534,0.26574315,68988.0,68987.0,1.00836655]
[1729462738753,0.26574315,68988.0,68987.0,1.02192073]
[1729462739193,0.116784,68988.0,68987.0,1.01236655]
[1729462739419,0.116784,68988.0,68987.0,1.01792054]
[1729462740781,0.36574315,68988.0,68987.0,1.01792054]
[1729462740988,0.36574315,68988.0,68987.0,1.00836655]
[1729462741431,0.36574315,68988.0,68987.0,1.0179322]
[1729462741853,0.36574315,68988.0,68987.0,1.00836655]
[1729462742063,0.36574315,68988.0,68987.0,1.01793209]
[1729462743591,0.36574315,68988.0,68987.0,1.00836655]
[1729462743816,0.36574315,68988.0,68987.0,1.01791462]
[1729462744776,0.38074315,68988.0,68987.0,1.01791462]
[1729462745014,0.38074315,68988.0,68987.0,1.0084171]
[1729462745248,0.38274315,68988.0,68987.0,1.0084171]
[1729462746788,0.38274315,68988.0,68987.0,0.91981523]
[1729462747007,0.38274315,68988.0,68987.0,0.92087743]
[1729462747008,0.38574315,68988.0,68987.0,0.92087743]
[1729462747217,0.38574315,68988.0,68987.0,0.90368813]
[1729462747429,0.38274315,68988.0,68987.0,0.90268813]
[1729462747935,0.38574315,68988.0,68987.0,0.81671513]
[1729462748350,0.38574315,68988.0,68987.0,0.75873313]
[1729462748774,0.38574315,68988.0,68987.0,0.61377813]
[1729462749688,0.49862217,68988.0,68987.0,0.1943341]
[1729462749893,0.49862217,68988.0,68987.0,0.11817839]
[1729462750123,0.017,68976.0,68975.0,0.21786809]
[1729462750348,0.115994,68969.0,68968.0,0.21786809]
[1729462750617,0.38195315,68969.0,68968.0,0.65284809]
[1729462750871,0.36995315,68969.0,68968.0,0.65284809]
[1729462751088,0.36995315,68969.0,68968.0,0.67961547]
[1729462751313,0.36995315,68969.0,68968.0,0.46174738]
[1729462751314,0.220994,68969.0,68968.0,0.46174738]
[1729462751537,0.115994,68969.0,68968.0,0.47702197]
[1729462751765,0.231972,68974.0,68968.0,0.47702197]
[1729462751766,0.003,68976.0,68969.0,0.1892]
[1729462751964,0.003,68976.0,68970.0,0.57899776]
[1729462751965,0.115992,68971.0,68970.0,0.57899776]
[1729462752836,0.23196,68978.0,68970.0,0.57899776]
[1729462752837,0.21786809,68989.0,68970.0,0.57899776]
[1729462753063,0.21869009,68988.0,68974.0,0.2721]
[1729462753299,0.000822,68988.0,68978.0,0.005]
[1729462753520,0.000822,68988.0,68981.0,0.0829]
[1729462753521,0.116784,68988.0,68981.0,0.0829]
[1729462753743,0.116784,68988.0,68982.0,0.47877972]
[1729462753993,0.115968,68984.0,68983.0,0.04387972]
[1729462754201,0.115968,68984.0,68983.0,0.49596789]
[1729462754876,0.000822,68988.0,68983.0,0.49596789]
[1729462755106,0.000822,68988.0,68984.0,0.06107789]
[1729462755325,0.115963,68987.0,68985.0,0.49595789]
[1729462755536,0.000822,68988.0,68986.0,0.06107789]
[1729462755778,0.116784,68988.0,68987.0,0.49593789]
[1729462756854,0.116784,68988.0,68987.0,0.47872666]
[1729462757067,0.116784,68988.0,68987.0,0.49592041]
[1729462757491,0.116784,68988.0,68987.0,0.47684749]
[1729462757705,0.000822,68988.0,68987.0,0.59781049]
[1729462757947,0.000822,68988.0,68987.0,0.87888341]
[1729462758382,0.000822,68988.0,68987.0,0.76292041]
[1729462759274,0.116784,68988.0,68987.0,0.75792041]
[1729462759765,0.116784,68988.0,68987.0,0.76292041]
[1729462759766,0.000822,68988.0,68987.0,0.76292041]
[1729462759976,0.001822,68988.0,68987.0,0.76892041]
[1729462760186,0.001822,68988.0,68987.0,0.74984749]
[1729462760397,0.001822,68988.0,68987.0,0.72665374]
[1729462760398,0.116784,68988.0,68987.0,0.72665374]
[1729462760626,0.11400314,68988.0,68987.0,0.73883552]
[1729462760851,0.11500314,68988.0,68987.0,0.48283552]
[1729462761070,0.21500314,68988.0,68987.0,0.48283552]
[1729462761285,0.000821,68990.0,68987.0,0.74363552]
[1729462761498,0.000821,68990.0,68988.0,0.04197552]
[1729462761708,0.11678,68990.0,68989.0,0.47682552]
[1729462762275,0.000821,68990.0,68989.0,0.47682552]
[1729462762483,0.116779,68990.0,68989.0,0.47682552]
[1729462763764,0.116779,68990.0,68989.0,0.48182548]
[1729462764199,0.116779,68990.0,68989.0,0.47682548]
[1729462764644,0.117779,68990.0,68989.0,0.48282548]
[1729462765517,0.117779,68990.0,68989.0,0.00599996]
[1729462765960,0.117779,68990.0,68989.0,0.44084996]
[1729462768221,0.117779,68990.0,68989.0,0.45158889]
[1729462771114,0.26673815,68990.0,68989.0,0.45158889]
[1729462771554,0.36673815,68990.0,68989.0,0.45158889]
[1729462771998,0.36573815,68990.0,68989.0,0.44558893]
[1729462772221,0.36873815,68990.0,68989.0,0.44085]
[1729462772893,0.37273815,68990.0,68989.0,0.43485]
[1729462773111,0.37973815,68990.0,68989.0,0.43585]
[1729462773337,0.47459057,68990.0,68989.0,0.43585]
[1729462773585,0.51599057,68990.0,68989.0,0.43485]
[1729462773849,0.43113815,68990.0,68989.0,0.43585]
[1729462774059,0.43913815,68990.0,68989.0,0.43585]
[1729462774279,0.43413815,68990.0,68989.0,0.43585]
[1729462774500,0.43913815,68990.0,68989.0,0.43585]
[1729462776961,0.43113815,68990.0,68989.0,0.43485]
[1729462777852,0.38273815,68990.0,68989.0,0.43485]
[1729462778063,0.38973815,68990.0,68989.0,0.43485]
[1729462778715,0.38273815,68990.0,68989.0,0.43485]
[1729462778938,0.39673815,68990.0,68989.0,0.436504]
[1729462780007,0.39473815,68990.0,68989.0,0.436504]
[1729462780457,0.39673815,68990.0,68989.0,0.436504]
[1729462782751,0.39473815,68990.0,68989.0,0.436504]
[1729462783012,0.38473815,68990.0,68989.0,0.436504]
[1729462783434,0.38673815,68990.0,68989.0,0.436504]
[1729462784211,0.57883815,68990.0,68989.0,0.34899441]
[1729462784402,0.57883815,68990.0,68966.0,0.21002209]
[1729462784403,0.132997,68967.0,68966.0,0.21002209]
[1729462784616,0.132997,68967.0,68966.0,0.64501209]
[1729462784617,0.38195615,68967.0,68966.0,0.64501209]
[1729462784837,0.38195615,68967.0,68966.0,0.43499]
[1729462785283,0.37995615,68967.0,68966.0,0.43499]
[1729462785982,0.39395615,68967.0,68966.0,0.43499]
[1729462787764,0.38195615,68967.0,68966.0,0.43499]
[1729462788233,0.39595615,68967.0,68966.0,0.43499]
[1729462788921,0.4828449,68967.0,68966.0,0.43499]
[1729462789641,0.4828449,68967.0,68966.0,0.31899]
[1729462789870,0.39595615,68967.0,68966.0,0.26099]
[1729462791060,0.39595615,68967.0,68966.0,0.262646]
[1729462791940,0.39678415,68967.0,68966.0,0.262646]
[1729462792883,0.39678415,68967.0,68966.0,0.204646]
[1729462793078,0.39678415,68967.0,68966.0,0.175646]
[1729462793302,0.50605847,68967.0,68966.0,0.117646]
[1729462793730,0.39678415,68967.0,68966.0,0.030646]
[1729462795308,0.39678415,68967.0,68945.0,0.082556]
[1729462795309,0.216027,68949.0,68945.0,0.082556]
[1729462795526,0.36498615,68949.0,68945.0,0.082556]
[1729462795773,0.116032,68946.0,68945.0,0.082556]
[1729462796003,0.26499115,68946.0,68945.0,0.082556]
[1729462796272,0.36499115,68946.0,68945.0,0.082556]
[1729462796505,0.37199115,68946.0,68945.0,0.001656]
[1729462796729,0.39029014,68946.0,68945.0,0.001656]
[1729462796945,0.37199115,68946.0,68945.0,0.001656]
[1729462797176,0.38199115,68946.0,68945.0,0.001656]
[1729462797391,0.37999115,68946.0,68945.0,0.001656]
[1729462798087,0.38699115,68946.0,68945.0,0.001656]
[1729462798542,0.38699115,68946.0,68945.0,0.436786]
[1729462800292,0.60485924,68946.0,68945.0,0.436786]
[1729462800509,0.38699115,68946.0,68945.0,0.436786]
[1729462802337,0.37699115,68946.0,68945.0,0.436786]
[1729462804551,0.37699115,68946.0,68945.0,0.702986]
[1729462804552,0.123032,68946.0,68945.0,0.702986]
[1729462804790,0.123032,68946.0,68945.0,0.72316682]
[1729462805002,0.123032,68946.0,68945.0,0.72316355]
[1729462805902,0.223032,68946.0,68945.0,0.72316355]
[1729462806192,0.216032,68946.0,68945.0,0.72316355]
[1729462806426,0.216032,68946.0,68945.0,0.72416355]
[1729462806878,0.232045,68952.0,68945.0,0.72416355]
[1729462807091,0.232028,68957.0,68948.0,0.0762]
[1729462807313,0.232028,68957.0,68946.0,0.15131131]
[1729462807314,0.116026,68950.0,68949.0,0.72583835]
[1729462807528,0.116026,68950.0,68949.0,0.73657931]
[1729462807981,0.116026,68950.0,68949.0,0.73658044]
[1729462809797,0.232044,68953.0,68949.0,0.73658044]
[1729462810014,0.232028,68957.0,68950.0,0.03528044]
[1729462810229,0.21786809,68958.0,68949.0,0.7013]
[1729462810230,0.232032,68956.0,68951.0,0.47037044]
[1729462810443,0.116023,68952.0,68951.0,0.43509]
[1729462810659,0.116023,68952.0,68951.0,0.47039948]
[1729462810893,0.116023,68952.0,68951.0,0.47040021]
[1729462812475,0.116023,68952.0,68951.0,0.54570021]
[1729462812745,0.116023,68952.0,68951.0,0.54670021]
[1729462813196,0.116023,68952.0,68951.0,0.54570021]